fUSD/lending_fUSD_20240103
["ID","MTS","AMOUNT","RATE_DAILY","PERIOD"]
[309989070,1704273035217,-644.2,0.00027846,2]
[309989071,1704273035236,-619.29227545,0.00027846,2]
[309989072,1704273035249,-739.93173762,0.00027846,2]
[309989073,1704273035261,-2602.38,0.00027846,2]
[309989074,1704273035329,-331.35637593,0.00027846,2]
[309989075,1704273035340,-2154.777611,0.00027847,5]
[309989076,1704273035353,-583.83229945,0.00027847,5]
[309989077,1704273035388,-319.91350895,0.00027847,5]
[309989078,1704273035632,-265.25084561,0.00027847,5]
[309989079,1704273035648,-568.82257769,0.00027847,5]
[309989080,1704273035670,-2617.74080649,0.00027847,5]
[309989082,1704273038034,-155.0,0.00027399,2]
[309989083,1704273038044,-1018.91138684,0.00027847,5]
[309989084,1704273038142,-631.61528351,0.00027847,5]
[309989085,1704273038155,-6622.41859206,0.00027847,5]
[309989086,1704273038165,-189.18,0.0002805,2]
[309989087,1704273038175,-277.34,0.00029677,2]
[309989088,1704273038185,-150.0,0.00029719,2]
[309989089,1704273038195,-487.68,0.00029726,2]
[309989090,1704273038204,-1725.52,0.0002981,2]
[309989091,1704273038213,-200.0,0.0002981,2]
[309989092,1704273038223,-182.8,0.00029813,2]
[309989093,1704273038233,-182.51,0.00029818,5]
[309989094,1704273038242,-229.72,0.00029857,2]
[309989095,1704273038253,-205.0,0.00029868,10]
[309989096,1704273038263,-1639.53,0.00029883,2]
[309989097,1704273038272,-155.0,0.00030009,2]
[309989098,1704273038282,-156.62,0.0003001,2]
[309989099,1704273038291,-1639.53,0.00030056,2]
[309989100,1704273038301,-156.62,0.00030097,2]
[309989101,1704273038310,-159.44794045,0.00030137,14]
[309989102,1704273038320,-1975.86,0.00030137,2]
[309989103,1704273038330,-209.19769066,0.00030137,2]
[309989104,1704273038351,-156.62,0.00030184,2]
[309989105,1704273038362,-512.32,0.0003021,2]
[309989106,1704273038372,-621.48930583,0.00030228,2]
[309989107,1704273038394,-158.51481317,0.00029423,2]
[309989108,1704273038404,-818.04458283,0.00030228,2]
[309989109,1704273038417,-199.99611134,0.00030228,2]
[309989110,1704273038427,-156.62,0.00030271,2]
[309989111,1704273038436,-499.99,0.00030288,2]
[309989112,1704273038446,-189.18,0.00030314,2]
[309989113,1704273038457,-176.43,0.00030357,2]
[309989114,1704273038467,-150.99,0.00030357,2]
[309989115,1704273038477,-156.62,0.00030358,2]
[309989116,1704273038486,-164.33,0.00030387,2]
[309989117,1704273038496,-1639.53,0.00030401,2]
[309989118,1704273038505,-431.68,0.0003043,2]
[309989119,1704273038516,-179.05721021,0.00030441,2]
[309989120,1704273038529,-574.7594936,0.00030441,2]
[309989121,1704273038542,-129.91329619,0.00030441,2]
[309989123,1704273038552,-156.62,0.00030444,2]
[309989125,1704273038562,-418.39942505,0.00030527,4]
[309989127,1704273038571,-76.95305972,0.00030531,2]
[309989129,1704273038583,-79.66694028,0.00030531,2]
[309989131,1704273038593,-689.55618972,0.00030574,2]
[309989134,1704273038605,-949.97381028,0.00030574,2]
[309989136,1704273038614,-156.62,0.00030618,2]
[309989138,1704273038625,-156.62,0.00030705,2]
[309989140,1704273038636,-164.33,0.00030725,2]
[309989142,1704273038646,-146.95080877,0.00030746,2]
[309989144,1704273038658,-1492.57919123,0.00030746,2]
[309989146,1704273038669,-156.62,0.00030792,2]
[309989148,1704273038679,-229.72,0.00030835,2]
[309989150,1704273038689,-159.69,0.00030862,2]
[309989152,1704273038698,-1026.0,0.00030862,2]
[309989154,1704273038708,-156.62,0.00030879,2]
[309989156,1704273038717,-1639.53,0.00030919,2]
[309989158,1704273038728,-156.62,0.00030966,2]
[309989160,1704273038739,-150.0,0.00030978,2]
[309989162,1704273038749,-234.40103,0.00030998,2]
[309989164,1704273038761,-156.62,0.00031053,2]
[309989166,1704273038772,-164.33,0.00031062,2]
[309989169,1704273038783,-1639.53,0.00031092,2]
[309989171,1704273038794,-234.40103,0.00031098,2]
[309989172,1704273038806,-1843.7475332,0.00031099,2]
[309989174,1704273038815,-150.0,0.000311,2]
[309989176,1704273038825,-13.33133407,0.000311,2]
[309989179,1704273038838,-10101.84711786,0.000311,2]
[309989181,1704273038864,-317.13206227,0.000311,2]
[309989182,1704273038877,-8612.43843895,0.000311,2]
[309989183,1704273038890,-541.98537446,0.000311,2]
[309989184,1704273038903,-729.82228752,0.000311,2]
[309989185,1704273038922,-343.51425,0.000311,2]
[309989186,1704273038936,-243.92913487,0.000311,2]
[309989188,1704273038947,-156.62,0.00031139,2]
[309989190,1704273038957,-153.64045425,0.00031167,2]
[309989191,1704273038973,-1393.48737092,0.00031167,2]
[309989192,1704273038986,-394.73047548,0.00031167,2]
[309989193,1704273039000,-32806.06249798,0.00031167,2]
[309989210,1704273040661,-590.02713454,0.00031167,2]
[309989211,1704273040717,-972.47157629,0.00031167,2]
[309989214,1704273043322,-10309.9092,0.00031067,2]
[309989215,1704273043377,-5933.27761536,0.00031067,2]
[309989216,1704273043389,-9482.54599928,0.00031067,2]
[309989222,1704273046217,-12603.20025332,0.00031067,2]
[309989243,1704274235763,-318.08775894,0.00026867,2]
[309989244,1704274235777,-314.47830538,0.00026867,2]
[309989245,1704274235829,-514.09738186,0.00026867,2]
[309989246,1704274236004,-3853.33655382,0.00026867,2]
[309989247,1704274236016,-756.56077596,0.00026868,2]
[309989248,1704274236027,-158.51481317,0.00026869,2]
[309989249,1704274236037,-8703.52711645,0.00026967,2]
[309989430,1704274238209,-640.15238092,0.00026967,2]
[309989436,1704274238322,-1181.39561195,0.00026967,2]
[309989437,1704274238332,-250.0,0.00027,3]
[309989438,1704274238343,-250.0,0.000274,2]
[309989439,1704274238353,-170.26,0.0002827,2]
[309989440,1704274238363,-300.0,0.00029,3]
[309989441,1704274238373,-179.12512272,0.00029886,6]
[309989442,1704274238384,-390.15,0.00029887,2]
[309989443,1704274238394,-1330.56854392,0.00029928,2]
[309989444,1704274238404,-188.38846996,0.00029928,2]
[309989445,1704274238414,-2449.74974337,0.00029928,2]
[309989446,1704274238425,-581.87642113,0.00029928,2]
[309989447,1704274238436,-338.61397308,0.00029929,2]
[309989448,1704274238446,-25195.93461185,0.0002993,2]
[309989449,1704274238536,-251.45095597,0.0002993,2]
[309989450,1704274238700,-16385.10843218,0.0002993,2]
[309989451,1704274238710,-156.62,0.00029956,2]
[309989452,1704274238720,-199.09,0.00029989,2]
[309989453,1704274238730,-1437.93,0.0002999,2]
[309989454,1704274238740,-194.1,0.00030088,2]
[309989455,1704274238750,-327.9,0.00030191,2]
[309989456,1704274238761,-156.62,0.00030346,2]
[309989457,1704274238771,-327.9,0.00030365,2]
[309989458,1704274238784,-609.85,0.00030427,2]
[309989459,1704274238794,-359.73,0.00030486,2]
[309989460,1704274238804,-159.47,0.00030532,2]
[309989461,1704274238815,-170.26,0.00030534,2]
[309989462,1704274238825,-327.9,0.0003054,2]
[309989463,1704274238836,-234.40103,0.00030598,2]
[309989464,1704274238846,-234.40103,0.00030698,2]
[309989465,1704274238857,-327.9,0.00030714,2]
[309989466,1704274238866,-156.62,0.00030737,2]
[309989467,1704274238876,-300.0,0.00030769,2]
[309989468,1704274238886,-234.40103,0.00030798,2]
[309989469,1704274238896,-327.9,0.00030889,2]
[309989470,1704274238906,-206.0,0.0003089,2]
[309989471,1704274238916,-234.40103,0.00030898,2]
[309989472,1704274238925,-262.5566358,0.00030955,2]
[309989473,1704274238935,-199.09,0.00030968,2]
[309989474,1704274238944,-234.40103,0.00030998,2]
[309989475,1704274238954,-350.0,0.00031,3]
[309989476,1704274238963,-1646.0,0.00031,2]
[309989477,1704274238973,-327.9,0.00031063,2]
[309989478,1704274238983,-234.40103,0.00031098,2]
[309989479,1704274238992,-18813.0,0.000311,2]
[309989480,1704274239001,-156.62,0.00031127,2]
[309989481,1704274239012,-220.15916173,0.00031166,4]
[309989482,1704274239021,-660.15984,0.00031167,2]
[309989483,1704274239031,-234.40103,0.00031198,2]
[309989484,1704274239040,-327.9,0.00031237,2]
[309989485,1704274239050,-234.40103,0.00031298,2]
[309989486,1704274239059,-492.665,0.00031332,2]
[309989487,1704274239068,-234.40103,0.00031398,2]
[309989488,1704274239077,-164.33,0.000314,2]
[309989489,1704274239086,-327.9,0.00031412,2]
[309989490,1704274239096,-8127.1063339,0.0003143,4]
[309989491,1704274239106,-208.0,0.0003145,2]
[309989492,1704274239116,-187.39771176,0.00031482,14]
[309989493,1704274239126,-62231.0,0.00031482,2]
[309989494,1704274239136,-1026.0,0.00031494,2]
[309989495,1704274239145,-234.40103,0.00031498,2]
[309989496,1704274239155,-500.0,0.000315,2]
[309989497,1704274239164,-156.62,0.00031517,2]
[309989498,1704274239174,-224.25,0.00031531,2]
[309989499,1704274239186,-200.0,0.00031546,2]
[309989500,1704274239196,-327.9,0.00031586,2]
[309989501,1704274239206,-234.40103,0.00031598,2]
[309989502,1704274239219,-17418.4532587,0.00031598,2]
[309989503,1704274239229,-8990.71383751,0.00031636,2]
[309989504,1704274239238,-17418.45325863,0.0003166,2]
[309989505,1704274239248,-234.40103,0.00031698,2]
[309989506,1704274239259,-2183.15522471,0.000317,3]
[309989507,1704274239268,-7500.0,0.000317,2]
[309989508,1704274239278,-17418.45325863,0.00031722,2]
[309989509,1704274239290,-164.33,0.00031738,2]
[309989510,1704274239299,-327.9,0.00031761,2]
[309989511,1704274239308,-155.0,0.0003177,2]
[309989512,1704274239318,-1718.4405539,0.0003177,4]
[309989513,1704274239327,-153.47026344,0.00031779,4]
[309989514,1704274239336,-15318.18096068,0.00031784,2]
[309989515,1704274239350,-2100.27229795,0.00031784,2]
[309989516,1704274239360,-193.94968563,0.00031798,14]
[309989517,1704274239369,-763.42599532,0.00031798,2]
[309989518,1704274239378,-155.49704409,0.00031798,4]
[309989519,1704274239388,-234.40103,0.00031798,2]
[309989520,1704274239398,-322.06000012,0.00031799,4]
[309989521,1704274239407,-3008.26615963,0.00031799,2]
[309989522,1704274239416,-399.0,0.000318,5]
[309989523,1704274239425,-3353.33124445,0.000318,2]
[309989537,1704274243167,-314.0,0.000318,5]
[309989538,1704274243178,-127948.86889266,0.000318,2]
[309989539,1704274243275,-1893.89172587,0.000318,2]
[309989540,1704274243288,-544.05000045,0.000318,2]
[309989541,1704274243300,-1977.21614023,0.000318,2]
[309989542,1704274243313,-1146.63543381,0.000318,2]
[309989543,1704274243396,-2917.6184821,0.000318,2]
[309989544,1704274243450,-549.08111098,0.000318,2]
[309989545,1704274243508,-250.48040969,0.000318,2]
[309989546,1704274243564,-10053.05499999,0.000318,2]
[309989547,1704274243576,-440.41377552,0.000318,2]
[309989548,1704274243587,-9814.76079541,0.000318,2]
[309989549,1704274243622,-487.87279968,0.000318,2]
[309989587,1704274246648,-1566.90807066,0.00030867,2]
[309989658,1704275431472,-250.0,0.00027,3]
[309989659,1704275431482,-9.34639885,0.000274,2]
[309989660,1704275431495,-240.65360115,0.000274,2]
[309989661,1704275431505,-153.23,0.00028517,2]
[309989662,1704275431514,-300.0,0.00029,3]
[309989663,1704275431524,-297.71367133,0.00030237,2]
[309989664,1704275431535,-268.0,0.00030237,2]
[309989665,1704275431594,-122.16632867,0.00030237,2]
[309989666,1704275431604,-1198.27,0.00030284,2]
[309989667,1704275431613,-172.54,0.00030315,2]
[309989668,1704275431623,-4190.63214806,0.00030375,4]
[309989669,1704275431634,-5203.0411632,0.00030375,4]
[309989670,1704275431646,-1695.00217771,0.00030375,4]
[309989671,1704275431666,-1504.25749229,0.00030375,4]
[309989672,1704275431678,-396.39965987,0.00030375,4]
[309989673,1704275431720,-542.52416096,0.00030375,4]
[309989674,1704275431734,-609.31896859,0.00030375,4]
[309989675,1704275431743,-312.12,0.00030376,2]
[309989676,1704275431753,-299.77,0.00030593,2]
[309989677,1704275431762,-158.51481317,0.00030766,2]
[309989678,1704275431772,-153.23,0.0003078,2]
[309989679,1704275431781,-222.24533062,0.00030865,14]
[309989680,1704275431791,-1634.61888332,0.00030866,4]
[309989681,1704275431801,-151.40103,0.00030898,2]
[309989682,1704275431811,-158.9,0.00030931,2]
[309989683,1704275431820,-155.0,0.00030998,2]
[309989684,1704275431830,-235.11446994,0.00030998,4]
[309989685,1704275431840,-151.40103,0.00030998,2]
[309989686,1704275431849,-468.63684192,0.00031,2]
[309989687,1704275431865,-1138.31996974,0.00031,2]
[309989698,1704275437584,-1178.18551452,0.00031,2]
[309989699,1704275437597,-1725.91739606,0.00031,2]
[309989700,1704275437646,-45488.94027776,0.00031,2]
[309989701,1704275437656,-244.56576604,0.00031,2]
[309989702,1704275437667,-350.0,0.00031,3]
[309989703,1704275437679,-151.40103,0.00031098,2]
[309989704,1704275437689,-5713.0,0.00031099,2]
[309989705,1704275437698,-17912.0,0.000311,2]
[309989706,1704275437708,-151.40103,0.00031198,2]
[309989707,1704275437718,-172.54,0.00031294,2]
[309989708,1704275437727,-151.40103,0.00031298,2]
[309989709,1704275437737,-252.971,0.00031324,2]
[309989710,1704275437747,-4388.0,0.00031324,2]
[309989711,1704275437757,-1026.0,0.00031324,2]
[309989712,1704275437767,-159.64,0.00031376,2]
[309989713,1704275437777,-7111.1722,0.00031382,2]
[309989714,1704275437787,-276.6789,0.00031382,2]
[309989715,1704275437797,-151.40103,0.00031398,2]
[309989716,1704275437806,-151.40103,0.00031498,2]
[309989717,1704275437816,-5710.2001,0.00031498,2]
[309989718,1704275437826,-500.0,0.000315,2]
[309989719,1704275437836,-500.0,0.00031545,2]
[309989720,1704275437846,-500.0,0.00031546,2]
[309989721,1704275437856,-200.0,0.00031546,2]
[309989722,1704275437866,-151.40103,0.00031598,2]
[309989723,1704275437876,-1438.77555845,0.000316,5]
[309989724,1704275437886,-500.0,0.00031641,2]
[309989725,1704275437897,-500.0,0.00031641,2]
[309989726,1704275437907,-260.2493,0.00031641,2]
[309989727,1704275437917,-30225.56646404,0.00031697,2]
[309989728,1704275437927,-151.40103,0.00031698,2]
[309989729,1704275437936,-3898.9157,0.000317,2]
[309989730,1704275437947,-27882.9262,0.000317,2]
[309989731,1704275437958,-22032.2644,0.000317,2]
[309989732,1704275437967,-3551.78692364,0.000317,2]
[309989733,1704275437981,-490.57557853,0.000317,2]
[309989734,1704275438032,-2591.44189783,0.000317,2]
[309989735,1704275438042,-1958.55810217,0.000317,2]
[309989750,1704275442454,-843.98059783,0.000317,2]
[309989751,1704275442464,-410.75076412,0.000317,2]
[309989754,1704275442523,-142.83593588,0.000317,2]
[309989755,1704275442532,-2001.22562266,0.000317,3]
[309989756,1704275442541,-7500.0,0.000317,2]
[309989757,1704275442551,-125000.0,0.0003177,3]
[309989758,1704275442561,-91814.86163794,0.0003177,4]
[309989759,1704275442573,-6976.02847768,0.0003177,4]
[309989760,1704275442585,-572.00348816,0.0003177,4]
[309989761,1704275442609,-998.45,0.0003177,4]
[309989762,1704275442621,-4981.07969794,0.0003177,4]
[309989763,1704275442632,-1459.72906848,0.0003177,4]
[309989764,1704275442644,-589.53238683,0.0003177,4]
[309989765,1704275442660,-446.53762245,0.0003177,4]
[309989766,1704275442671,-1377.50795945,0.0003177,4]
[309989767,1704275442720,-780.28034897,0.0003177,4]
[309989768,1704275442794,-19132.1693121,0.0003177,4]
[309989769,1704275442804,-151.0,0.0003177,7]
[309989770,1704275442814,-168.986868,0.0003177,7]
[309989771,1704275442823,-151.0,0.0003177,7]
[309989772,1704275442834,-151.0,0.0003177,7]
[309989773,1704275442844,-151.0,0.0003177,7]
[309989774,1704275442853,-151.40103,0.00031798,2]
[309989775,1704275442866,-304.87758577,0.00031799,4]
[309989776,1704275442876,-225.9299571,0.00031799,4]
[309989777,1704275442885,-230.0,0.000318,5]
[309989779,1704275442895,-145454.04625968,0.000318,2]
[309989780,1704275442907,-7489.2419208,0.000318,2]
[309989781,1704275444294,-8585.14868999,0.000318,2]
[309989782,1704275444361,-1432.56933467,0.000318,2]
[309989783,1704275445159,-461.66999986,0.000318,2]
[309989784,1704275445221,-9233.68984971,0.000318,2]
[309989800,1704275445539,-1428.78359783,0.00031699,4]
[309989801,1704275445552,-1199.28025159,0.00031699,4]
[309989802,1704275445565,-2274.0,0.00031699,4]
[309989803,1704275445578,-808.88975251,0.00031699,4]
[309989804,1704275445603,-1553.69659928,0.00031699,4]
[309989805,1704275445613,-867.39803885,0.000318,2]
[309989806,1704275445626,-437.36462342,0.000318,2]
[309989807,1704275445664,-1792.79423048,0.000318,2]
[309989808,1704275445676,-357.962,0.000318,2]
[309989809,1704275445726,-53907.6317173,0.000318,2]
[309989810,1704275445738,-2636.92648583,0.000318,2]
[309989811,1704275445845,-418.85121194,0.000318,2]
[309989905,1704276631607,-250.0,0.000274,2]
[309989907,1704276631618,-153.23,0.00028348,2]
[309989909,1704276631628,-150.0,0.00029999,2]
[309989911,1704276631638,-27663.69653443,0.0003,2]
[309989916,1704276631712,-282.07001,0.0003,2]
[309989917,1704276631823,-2074.43829325,0.0003,2]
[309989976,1704276637636,-5102.53264243,0.0003,2]
[309989977,1704276637744,-492.49193289,0.0003,2]
[309989978,1704276637818,-1308.000396,0.0003,2]
[309989979,1704276637829,-912.60619991,0.0003,2]
[309989980,1704276637913,-76663.66125908,0.0003,2]
[309989981,1704276637924,-969.10806065,0.0003,2]
[309989982,1704276637934,-449.69,0.00030031,2]
[309989983,1704276637943,-160.21,0.00030139,2]
[309989984,1704276637953,-998.55,0.00030153,2]
[309989985,1704276637963,-180.41,0.00030407,2]
[309989986,1704276637972,-1332.9,0.00030418,2]
[309989987,1704276637981,-550.31,0.00030445,2]
[309989988,1704276637991,-156.63,0.00030483,2]
[309989989,1704276638000,-1000.0,0.00030536,2]
[309989990,1704276638010,-481.53,0.00030581,2]
[309989991,1704276638019,-206.3,0.00030644,2]
[309989992,1704276638029,-206.0,0.00030712,2]
[309989993,1704276638039,-159.64,0.00030727,2]
[309989994,1704276638049,-153.23,0.00030878,2]
[309989995,1704276638059,-151.40103,0.00030898,2]
[309989996,1704276638069,-161.33,0.00030951,2]
[309989997,1704276638078,-151.40103,0.00030998,2]
[309989999,1704276638087,-13934.76260698,0.00030998,2]
[309990001,1704276638097,-7713.04775433,0.00031,3]
[309990002,1704276638109,-301.17893725,0.00031,3]
[309990003,1704276638129,-5226.74994005,0.00031,3]
[309990014,1704276640231,-17168.44545169,0.00031,3]
[309990015,1704276640281,-2977.59669389,0.00031,3]
[309990016,1704276640295,-1202.76904628,0.00031,3]
[309990017,1704276640307,-1243.83787334,0.00031,3]
[309990018,1704276640930,-748.68300009,0.00031,3]
[309990019,1704276640984,-279.25576526,0.00031,3]
[309990020,1704276641050,-1452.83869548,0.00031,3]
[309990021,1704276641064,-510.98056953,0.00031,3]
[309990022,1704276641095,-256.12706324,0.00031,3]
[309990023,1704276641107,-3999.241566,0.00031,3]
[309990106,1704276642610,-1950.40470994,0.00031,3]
[309990108,1704276642718,-2062.59623598,0.00031,3]
[309990109,1704276642729,-388.55643423,0.00031,3]
[309990110,1704276642741,-2886.21561613,0.00031,3]
[309990111,1704276642772,-3361.99642499,0.00031,3]
[309990112,1704276642783,-2825.0401579,0.00031,3]
[309990113,1704276642794,-938.032615,0.00031,3]
[309990114,1704276642839,-395.84080297,0.00031,3]
[309990115,1704276642884,-13503.525,0.00031,3]
[309990116,1704276643022,-783.66584781,0.00031,3]
[309990119,1704276643682,-718.62572575,0.00031,3]
[309990126,1704276645718,-746.14475165,0.00031,3]
[309990127,1704276645825,-1940.5967708,0.00031,3]
[309990128,1704276645837,-45404.99999997,0.00031,3]
[309990129,1704276646062,-556.29232899,0.00031,3]
[309990182,1704277705350,-250.0,0.00027,3]
[309990203,1704277792703,155.0,0.00027,2]
[309990204,1704277808626,155.0,0.00027,2]
[309990205,1704277811462,292.31132076,0.00027,2]
[309990206,1704277827690,167.10064555,0.00027,2]
[309990214,1704277831973,-250.0,0.000274,2]
[309990215,1704277831982,-153.23,0.00028137,2]
[309990216,1704277831992,-300.0,0.00029,3]
[309990217,1704277832001,-832.12,0.0002983,2]
[309990218,1704277832011,-160.21,0.0002983,2]
[309990219,1704277832021,-163.62,0.00029872,2]
[309990220,1704277832033,-196.14,0.00029872,2]
[309990221,1704277832041,-156.63,0.0003004,2]
[309990222,1704277832051,-294.12,0.00030077,2]
[309990223,1704277832060,-181.3299998,0.00030132,2]
[309990277,1704277833436,291.16755468,0.00027,2]
[309990281,1704277837837,-458.9100002,0.00030132,2]
[309990282,1704277837847,-401.27,0.00030195,2]
[309990283,1704277837857,-151.40103,0.00030198,2]
[309990284,1704277837867,-151.40103,0.00030298,2]
[309990285,1704277837877,-151.40103,0.00030398,2]
[309990286,1704277837887,-151.40103,0.00030498,2]
[309990287,1704277837896,-151.40103,0.00030598,2]
[309990288,1704277837905,-151.40103,0.00030698,2]
[309990289,1704277837914,-156.66646498,0.00030698,2]
[309990290,1704277837923,-170.47902395,0.00030701,4]
[309990291,1704277837932,-151.40103,0.00030798,2]
[309990292,1704277837941,-155.0694758,0.000308,2]
[309990293,1704277837950,-150.0,0.00030889,2]
[309990294,1704277837959,-1297.79782507,0.0003089,2]
[309990295,1704277837975,-449.42188296,0.0003089,2]
[309990296,1704277838091,-2342.65834162,0.0003089,2]
[309990297,1704277838103,-5488.64717693,0.0003089,2]
[309990298,1704277838260,-11427.39736436,0.0003089,2]
[309990375,1704277840377,-707.70999982,0.0003089,2]
[309990386,1704277843031,-4270.5,0.0003089,2]
[309990387,1704277843045,-3193.32703544,0.0003089,2]
[309990388,1704277843192,-2807.85655658,0.0003089,2]
[309990397,1704277845949,-9499.75801722,0.0003089,2]
[309990398,1704277845961,-12452.4742,0.0003089,2]
[309990399,1704277845972,-151.40103,0.00030898,2]
[309990401,1704277846230,-13238.02447665,0.000309,2]
[309990404,1704277846240,-160.21,0.00030971,2]
[309990405,1704277846251,-383.96371166,0.00030989,4]
[309990406,1704277846262,-9548.92147544,0.0003099,2]
[309990408,1704277846276,-856.58174698,0.0003099,2]
[309990410,1704277846289,-299.02282421,0.0003099,2]
[309990413,1704277846311,-339.66350361,0.0003099,2]
[309990416,1704277846327,-354.72076362,0.0003099,2]
[309990431,1704277847457,168.33,0.00024281,2]
[309990432,1704277851440,194.92262951,0.00027,2]
[309990433,1704277856956,293.46018202,0.00025,2]
[309990434,1704277993654,155.0,0.00025,2]
[309990435,1704278001031,500.0,0.00025,2]
[309990436,1704278024970,532.13837665,0.00025,2]
[309990437,1704278042990,290.96684543,0.00025,2]
[309990438,1704278055499,202.52319538,0.00025,2]
[309990439,1704278055524,446.40323492,0.00025,2]
[309990450,1704279002819,150.0,0.00025,2]
[309990451,1704279005344,150.0,0.00025,2]
[309990452,1704279005550,150.0,0.00025,2]
[309990453,1704279005735,150.0,0.00025,2]
[309990454,1704279005931,150.0,0.00025,2]
[309990455,1704279006113,150.0,0.00025,2]
[309990456,1704279006523,150.0,0.00025,2]
[309990457,1704279006623,150.0,0.00025,2]
[309990458,1704279006669,150.0,0.00025,2]
[309990459,1704279006862,150.0,0.00025,2]
[309990460,1704279007059,150.0,0.00025,2]
[309990461,1704279007253,286.43074405,0.00025,2]
[309990483,1704279031970,-514.67974286,0.00026999,2]
[309990484,1704279031980,-250.0,0.00027,3]
[309990485,1704279031989,-82.77039091,0.000274,2]
[309990487,1704279032120,-167.22960909,0.000274,2]
[309990488,1704279032130,-153.23,0.00027659,2]
[309990489,1704279032139,-205.0,0.00028594,2]
[309990490,1704279032149,-300.0,0.00029,3]
[309990491,1704279032159,-155.22099751,0.00029437,2]
[309990492,1704279032168,-115.38076129,0.00029534,2]
[309990493,1704279032201,-45.35923871,0.00029534,2]
[309990494,1704279032211,-156.63,0.00029753,2]
[309990495,1704279032220,-693.43,0.00029825,2]
[309990496,1704279032230,-1000.0,0.00029878,2]
[309990497,1704279032239,-1303.0,0.0003,3]
[309990498,1704279032248,-161.34,0.00030083,2]
[309990499,1704279032257,-159.64,0.0003015,2]
[309990500,1704279032267,-151.40103,0.00030298,2]
[309990501,1704279032276,-161.34,0.00030357,2]
[309990502,1704279032286,-151.40103,0.00030398,2]
[309990503,1704279032296,-151.40103,0.00030498,2]
[309990504,1704279032306,-936.0,0.000305,3]
[309990505,1704279032316,-151.40103,0.00030598,2]
[309990506,1704279032325,-160.96440862,0.00030601,2]
[309990507,1704279032336,-161.34,0.0003063,2]
[309990508,1704279032349,-239.09408116,0.00030676,4]
[309990509,1704279032359,-1511.5035,0.00030678,2]
[309990510,1704279032368,-151.40103,0.00030698,2]
[309990512,1704279032378,-170.47902395,0.00030701,4]
[309990515,1704279032388,-150.0,0.00030701,2]
[309990517,1704279032400,-150.0,0.00030701,2]
[309990519,1704279032410,-153.23,0.00030731,2]
[309990521,1704279032420,-418.57098606,0.00030777,4]
[309990523,1704279032429,-200000.0,0.00030778,7]
[309990525,1704279032439,-160.74,0.0003078,2]
[309990527,1704279032449,-1300.8767052,0.0003079,5]
[309990529,1704279032458,-151.40103,0.00030798,2]
[309990531,1704279032468,-2000.0,0.00030889,2]
[309990533,1704279032477,-2000.0,0.00030889,2]
[309990535,1704279032487,-2000.0,0.00030889,2]
[309990537,1704279032497,-2000.0,0.00030889,2]
[309990539,1704279032507,-2000.0,0.00030889,2]
[309990541,1704279032517,-2000.0,0.00030889,2]
[309990543,1704279032527,-2000.0,0.00030889,2]
[309990546,1704279032537,-2000.0,0.00030889,2]
[309990548,1704279032546,-2000.0,0.00030889,2]
[309990550,1704279032557,-2000.0,0.00030889,2]
[309990552,1704279032567,-2000.0,0.00030889,2]
[309990554,1704279032577,-2000.0,0.00030889,2]
[309990556,1704279032587,-2000.0,0.00030889,2]
[309990558,1704279032597,-2000.0,0.00030889,2]
[309990560,1704279032607,-2000.0,0.00030889,2]
[309990562,1704279032616,-2000.0,0.00030889,2]
[309990564,1704279032626,-2000.0,0.00030889,2]
[309990566,1704279032635,-2000.0,0.00030889,2]
[309990568,1704279032645,-2000.0,0.00030889,2]